bitfinex/quotes_SOLUSD_20250929
["timestamp","ask_amount","ask_price","bid_price","bid_amount"]
[1759154344122,26.0,209.61,209.58,0.2]
[1759154344532,16.69130621,209.69,209.58,0.2]
[1759154344825,13.59559401,209.67,209.59,0.71]
[1759154345225,4.76962701,209.66,209.59,0.71]
[1759154345604,4.76962701,209.66,209.58,39.48]
[1759154345799,4.76962701,209.66,209.58,44.25130516]
[1759154346009,4.76962701,209.66,209.58,39.48]
[1759154346431,26.0,209.65,209.58,39.48]
[1759154346998,24.93473007,209.66,209.58,39.48]
[1759154347205,16.69688006,209.62,209.58,39.48]
[1759154347433,4.77053716,209.62,209.58,40.19]
[1759154347725,4.77053716,209.62,209.58,0.2]
[1759154348030,16.69688006,209.62,209.58,0.2]
[1759154348412,13.59559401,209.61,209.58,0.2]
[1759154349231,26.0,209.59,209.58,0.2]
[1759154349551,30.77122,209.59,209.58,0.2]
[1759154350053,39.01225553,209.59,209.58,0.2]
[1759154350344,13.59559401,209.58,209.45,0.71]
[1759154350648,13.59559401,209.58,209.34,54.38]
[1759154350649,8.24103553,209.56,209.46,9.13]
[1759154350802,13.59559401,209.56,209.47,9.13]
[1759154351004,8.24103553,209.5,209.4,26.0]
[1759154351335,0.06,209.55,209.34,0.71]
[1759154351336,8.24103553,209.43,209.34,0.71]
[1759154351503,8.30103553,209.43,209.34,41.06]
[1759154351703,26.0,209.4,209.34,41.06]
[1759154352054,26.0,209.4,209.35,0.91]
[1759154352335,26.0,209.38,209.35,0.91]
[1759154352700,26.0,209.38,209.36,0.71]
[1759154353135,40.64054041,209.46,209.36,0.71]
[1759154353136,16.76963428,209.46,209.36,0.71]
[1759154353354,4.77532114,209.41,209.37,0.7]
[1759154353828,4.77513964,209.42,209.38,0.7]
[1759154354031,4.77513964,209.42,209.35,0.2]
[1759154354454,26.0,209.39,209.35,0.2]
[1759154354940,26.0,209.39,209.35,0.9]
[1759154355143,26.0,209.39,209.36,0.7]
[1759154355354,26.0,209.39,209.35,0.2]
[1759154355355,42.71287242,209.42,209.37,0.7]
[1759154355664,42.71287242,209.42,209.38,0.7]
[1759154355858,42.71287242,209.42,209.35,0.2]
[1759154356069,13.59559401,209.43,209.35,0.2]
[1759154356070,13.59559401,209.48,209.36,0.7]
[1759154356364,4.77349754,209.49,209.37,8.24103553]
[1759154356561,4.77349754,209.49,209.38,41.7]
[1759154356865,4.77349754,209.49,209.39,0.7]
[1759154357552,16.70724139,209.49,209.39,5.47558309]
[1759154357752,4.77349754,209.49,209.4,0.7]
[1759154358129,42.70724139,209.49,209.4,0.7]
[1759154358635,30.77349754,209.49,209.4,0.7]
[1759154359357,26.0,209.49,209.4,0.7]
[1759154359527,11.93234604,209.52,209.41,4.77532114]
[1759154359733,4.77304185,209.51,209.42,0.7]
[1759154361150,16.70564649,209.51,209.42,0.7]
[1759154361353,16.70564649,209.51,209.4,0.68]
[1759154361552,0.06,209.5,209.4,0.68]
[1759154361744,26.0,209.48,209.4,0.68]
[1759154362736,26.0,209.48,209.4,5.45550571]
[1759154362931,26.0,209.48,209.4,0.68]
[1759154363659,4.77395331,209.47,209.4,0.68]
[1759154364045,30.77370814,209.49,209.4,5.45543321]
[1759154364446,42.70745199,209.49,209.4,0.68]
[1759154364863,42.70745199,209.49,209.38,41.0]
[1759154365038,26.0,209.46,209.38,41.68]
[1759154365237,26.0,209.46,209.38,46.45600284]
[1759154365848,30.77426893,209.46,209.38,46.45600284]
[1759154366058,30.77426893,209.46,209.39,0.68]
[1759154366936,26.0,209.46,209.39,0.68]
[1759154367455,30.77419674,209.46,209.39,0.68]
[1759154368153,48.25161428,209.46,209.38,41.0]
[1759154368370,48.31161428,209.46,209.38,41.0]
[1759154369078,5.54196448,209.43,209.35,0.2]
[1759154369285,0.06,209.42,209.36,40.9]
[1759154369656,5.54196448,209.43,209.36,40.9]
[1759154369860,4.77509311,209.42,209.36,40.9]
[1759154370091,5.54196448,209.37,209.35,0.2]
[1759154370297,26.0,209.4,209.35,0.2]
[1759154370298,5.54196448,209.36,209.35,0.2]
[1759154370580,5.60196448,209.36,209.35,0.2]
[1759154370774,31.60196448,209.36,209.35,0.2]
[1759154371773,31.54196448,209.36,209.35,0.2]
[1759154372069,36.31842607,209.36,209.35,0.2]
[1759154372768,30.77646159,209.36,209.35,0.2]
[1759154373159,26.0,209.36,209.35,0.2]
[1759154373360,26.0,209.39,209.35,0.2]
[1759154373560,37.9396616,209.39,209.35,0.2]
[1759154373966,48.25740333,209.39,209.35,0.2]
[1759154374366,0.06,209.38,209.35,0.2]
[1759154374687,26.0,209.36,209.35,0.2]
[1759154374871,26.0,209.38,209.35,0.2]
[1759154376081,4.77623346,209.37,209.35,0.2]
[1759154376587,0.69,209.48,209.36,6.22196448]
[1759154376883,0.69,209.48,209.36,5.54196448]
[1759154377183,0.69,209.48,209.39,5.54196448]
[1759154377485,0.69,209.48,209.4,41.8]
[1759154378288,0.69,209.51,209.4,46.5754937]
[1759154378673,0.69,209.51,209.4,58.51436667]
[1759154378982,0.69,209.51,209.4,46.5754937]
[1759154379786,14.28559401,209.5,209.4,41.8]
[1759154380191,26.0,209.51,209.4,52.1174147]
[1759154380693,26.69,209.51,209.4,52.1174147]
[1759154381081,4.77326968,209.5,209.4,52.1174147]
[1759154381391,4.77326968,209.5,209.4,46.57545022]
[1759154381894,16.7064439,209.5,209.4,46.57545022]
[1759154382403,0.69,209.49,209.4,41.8]
[1759154382766,13.59559401,209.49,209.35,0.2]
[1759154383095,13.59559401,209.49,209.36,22.78]
[1759154383096,5.54196448,209.46,209.36,22.78]
[1759154383296,4.77440916,209.45,209.36,22.78]
[1759154383501,4.77440916,209.45,209.35,0.2]
[1759154383502,5.54196448,209.4,209.35,0.2]
[1759154383687,5.54196448,209.37,209.35,0.2]
[1759154383992,19.13755849,209.38,209.35,0.2]
[1759154384185,0.69,209.37,209.35,0.2]
[1759154384381,0.69,209.36,209.35,0.2]
[1759154385197,5.46646159,209.36,209.35,0.2]
[1759154385393,0.69,209.36,209.35,0.2]
[1759154386173,0.69,209.38,209.35,0.2]
[1759154386378,0.69,209.37,209.35,0.2]
[1759154386574,4.77577725,209.39,209.35,0.2]
[1759154386995,0.69,209.38,209.35,0.2]
[1759154387191,4.77646159,209.36,209.35,0.2]
[1759154387497,11.93944314,209.39,209.35,0.2]
[1759154387676,5.46600534,209.38,209.35,0.2]
[1759154387871,4.77600534,209.38,209.35,0.2]
[1759154388071,4.77534558,209.41,209.35,0.2]
[1759154388601,5.54196448,209.39,209.35,0.2]
[1759154388899,0.69,209.43,209.3,5.54196448]
[1759154389597,5.46491584,209.43,209.3,5.54196448]
[1759154390080,5.46491584,209.43,209.29,72.31805702]
[1759154390081,17.40207861,209.43,209.29,72.31805702]
[1759154390286,17.40207861,209.43,209.29,77.8600215]
[1759154390687,17.40207861,209.43,209.29,89.80516938]
[1759154390986,17.40207861,209.43,209.32,5.54196448]
[1759154391185,17.40207861,209.43,209.33,4.77714613]
[1759154391587,0.69,209.43,209.33,16.72001146]
[1759154392188,5.46486614,209.43,209.33,16.72001146]
[1759154392399,5.46486614,209.43,209.33,16.74001146]
[1759154393581,0.69,209.43,209.33,16.74001146]
[1759154394181,5.46486579,209.43,209.33,16.74001146]
[1759154394400,5.46486579,209.43,209.28,0.2]
[1759154394401,5.54196448,209.38,209.28,0.2]
[1759154394631,26.0,209.32,209.28,0.2]
[1759154394904,0.67,209.31,209.28,0.2]
[1759154395077,0.67,209.3,209.28,0.2]
[1759154395285,0.67,209.29,209.28,0.2]
[1759154395605,5.44805915,209.29,209.28,0.2]
[1759154397694,0.67,209.29,209.28,0.2]
[1759154398012,13.59559401,209.3,209.28,0.2]
[1759154398375,14.26559401,209.3,209.28,0.2]
[1759154398791,4.77805915,209.29,209.28,0.2]
[1759154399178,5.44805915,209.29,209.28,0.2]
[1759154399511,0.67,209.29,209.28,0.2]
[1759154399809,13.59559401,209.3,209.28,0.2]
[1759154400317,13.59559401,209.33,209.28,0.2]
[1759154400808,4.77694307,209.34,209.28,4.97823632]
[1759154400996,5.44664384,209.36,209.28,0.2]
[1759154401178,0.67,209.36,209.28,4.97826174]
[1759154401385,5.44588093,209.39,209.29,42.4]
[1759154401692,18.37091515,209.41,209.3,0.02]
[1759154401890,26.20340927,209.42,209.3,0.02]
[1759154401891,5.4451143,209.42,209.3,0.02]
[1759154402083,5.4451143,209.42,209.32,5.54196448]
[1759154402708,19.04070831,209.42,209.32,5.56196448]
[1759154403203,18.37043801,209.44,209.33,0.02]
[1759154403517,5.44443165,209.45,209.35,5.54196448]
[1759154403698,13.59559401,209.5,209.36,0.02]
[1759154403887,13.59559401,209.43,209.3,0.66]
[1759154404201,16.70753429,209.49,209.32,0.66]
[1759154404202,13.59559401,209.4,209.32,0.66]
[1759154404514,0.67,209.42,209.32,0.66]
[1759154404817,13.59559401,209.46,209.35,5.54196448]
[1759154404980,5.44417149,209.47,209.36,5.43646159]
[1759154405187,0.67,209.46,209.36,5.43646159]
[1759154405396,0.67,209.46,209.32,5.43737435]
[1759154405397,14.26559401,209.45,209.32,5.43737435]
[1759154405690,0.67,209.44,209.33,43.02]
[1759154405892,0.67,209.44,209.34,0.66]
[1759154406208,17.37905476,209.47,209.34,6.20196448]
[1759154406515,17.37905476,209.47,209.35,0.66]
[1759154407083,39.59559401,209.43,209.28,0.2]
[1759154407404,31.54196448,209.37,209.28,0.2]
[1759154407708,13.59559401,209.36,209.28,0.2]
[1759154408005,14.26559401,209.36,209.28,0.2]
[1759154408403,13.59559401,209.33,209.28,0.2]
[1759154408887,4.77760259,209.31,209.28,0.2]
[1759154409305,0.67,209.3,209.28,0.2]
[1759154409684,0.67,209.29,209.28,0.2]
[1759154411395,5.54196448,209.32,209.28,0.2]
[1759154411396,0.67,209.32,209.28,0.2]
[1759154411591,30.77713046,209.34,209.28,0.2]
[1759154411592,0.67,209.31,209.28,0.2]
[1759154411996,0.67,209.3,209.28,0.2]
[1759154412199,14.26559401,209.29,209.28,0.2]
[1759154413116,19.04365316,209.29,209.28,0.2]
[1759154413999,4.77805915,209.29,209.28,0.2]
[1759154414884,11.9441557,209.31,209.28,0.2]
[1759154415090,0.7,209.29,209.28,0.2]
[1759154415496,13.59559401,209.3,209.28,0.2]
[1759154415917,14.29559401,209.3,209.28,0.2]
[1759154416210,0.7,209.33,209.28,0.2]
[1759154416388,13.59559401,209.32,209.28,0.2]
[1759154417091,19.07297547,209.32,209.28,0.2]
[1759154417287,0.7,209.4,209.28,4.97812906]
[1759154417513,21.76189851,209.55,209.28,4.97812906]
[1759154417514,0.7,209.39,209.29,44.26]
[1759154417713,13.59559401,209.37,209.3,43.58]
[1759154418013,13.59559401,209.35,209.3,43.58]
[1759154418193,13.59559401,209.35,209.3,43.54]
[1759154418398,14.29559401,209.38,209.3,43.54]
[1759154418597,14.29559401,209.38,209.3,44.22]
[1759154419002,4.77623346,209.37,209.3,43.54]
[1759154419199,0.7,209.36,209.28,0.2]
[1759154419400,13.59559401,209.33,209.28,0.2]
[1759154419610,0.7,209.32,209.28,0.2]
[1759154420018,0.7,209.36,209.28,0.2]
[1759154420217,13.59559401,209.36,209.28,5.65814348]
[1759154420399,0.7,209.43,209.31,8.27816749]
[1759154420598,0.7,209.43,209.32,0.68]
[1759154420797,13.59559401,209.42,209.32,0.68]
[1759154421323,4.77532114,209.41,209.33,4.77714613]
[1759154421514,13.59559401,209.42,209.34,43.48]
[1759154421898,13.59559401,209.42,209.34,44.14]
[1759154422315,18.37071358,209.42,209.34,44.14]
[1759154422722,18.37071358,209.42,209.35,43.42]
[1759154422902,13.59559401,209.42,209.35,43.42]
[1759154423099,0.7,209.43,209.36,4.77646159]
[1759154423427,13.59559401,209.43,209.36,4.77646159]
[1759154423818,13.59559401,209.44,209.36,4.77646159]
[1759154424521,0.72,209.43,209.35,48.19666175]
[1759154424923,13.59559401,209.41,209.3,8.27816749]
[1759154425121,4.77600534,209.38,209.31,48.07758478]
[1759154425341,13.59559401,209.39,209.31,48.73758478]
[1759154426226,5.49556991,209.4,209.31,48.73758478]
[1759154426227,13.59559401,209.4,209.31,48.73758478]
[1759154426402,18.37117968,209.4,209.31,48.73758478]
[1759154426596,3.92839502,209.5,209.31,48.73758478]
[1759154426597,8.27816749,209.47,209.32,8.93816749]
[1759154426812,26.0,209.44,209.33,0.66]
[1759154427227,4.77486511,209.43,209.34,16.71921276]
[1759154427418,5.49486511,209.43,209.34,16.71921276]
[1759154427618,5.49486511,209.43,209.34,4.77691793]
[1759154428009,13.59559401,209.46,209.37,8.27816749]
[1759154428206,13.59559401,209.46,209.38,43.16]
[1759154428397,0.72,209.45,209.38,43.16]
[1759154428620,0.72,209.44,209.34,13.71508542]
[1759154428815,0.72,209.44,209.35,52.05816749]
[1759154429020,13.59559401,209.46,209.36,0.66]
[1759154429406,13.59559401,209.46,209.37,4.77623346]
[1759154429407,4.77440916,209.45,209.37,4.77623346]
[1759154429622,26.0,209.46,209.38,8.93816749]
[1759154430214,0.72,209.47,209.38,8.93816749]
[1759154430420,13.59559401,209.49,209.39,0.66]
[1759154430624,0.72,209.5,209.41,8.27816749]
[1759154430822,0.72,209.5,209.42,43.06]
[1759154431229,0.72,209.56,209.47,8.27816749]
[1759154431409,4.77213075,209.55,209.48,47.81372541]
[1759154431724,0.72,209.56,209.48,48.47372541]
[1759154431905,5.49199457,209.56,209.48,43.04]
[1759154432104,0.1,209.59,209.52,26.0]
[1759154432307,4.87123067,209.59,209.51,0.66]
[1759154432620,4.87123067,209.59,209.45,0.66]
[1759154432621,40.31559401,209.58,209.45,0.66]
[1759154432810,40.31559401,209.58,209.46,43.0]
[1759154433014,40.31559401,209.58,209.47,0.66]
[1759154433409,13.59559401,209.56,209.46,43.0]
[1759154433615,13.59559401,209.54,209.46,43.0]
[1759154434019,0.72,209.55,209.46,48.43407051]
[1759154434226,0.72,209.55,209.46,60.36952357]
[1759154434911,0.72,209.55,209.46,43.66]
[1759154435320,4.77235849,209.54,209.46,43.66]
[1759154435523,26.0,209.58,209.47,0.66]
[1759154435830,17.42010244,209.58,209.47,0.66]
[1759154437514,17.42010244,209.58,209.48,4.77372541]
[1759154437749,0.72,209.57,209.48,4.77372541]
[1759154438434,4.77190303,209.56,209.48,4.77372541]
[1759154438737,0.72,209.55,209.46,43.0]
[1759154439039,0.72,209.54,209.46,43.0]
[1759154439328,5.59123893,209.59,209.48,8.27816749]
[1759154439534,0.82,209.59,209.49,0.66]
[1759154440346,5.59122157,209.59,209.49,0.66]
[1759154440923,17.51927157,209.59,209.5,4.77326968]
[1759154441126,17.51927157,209.59,209.49,4.77349054]
[1759154441127,0.72,209.58,209.49,4.77349054]
[1759154441327,0.72,209.57,209.49,4.77349054]
[1759154441533,13.59559401,209.55,209.41,4.77532114]
[1759154441736,21.8737615,209.53,209.4,4.77554918]
[1759154442042,0.72,209.52,209.42,31.8]
[1759154442217,0.72,209.51,209.42,31.8]
[1759154442418,0.72,209.5,209.42,31.8]
[1759154442852,8.27816749,209.53,209.42,31.8]
[1759154442853,13.59559401,209.48,209.42,31.8]
[1759154443019,0.72,209.47,209.42,31.8]
[1759154443219,0.72,209.46,209.42,31.8]
[1759154443437,0.72,209.45,209.42,31.8]
[1759154443646,13.59559401,209.48,209.28,0.2]
[1759154443647,13.59559401,209.43,209.33,4.77714613]
[1759154443817,0.72,209.42,209.36,42.62]
[1759154444018,0.72,209.41,209.36,42.62]
[1759154444218,13.59559401,209.43,209.36,42.62]
[1759154444219,0.72,209.4,209.36,42.62]
[1759154444522,0.72,209.39,209.36,42.62]
[1759154444838,13.59559401,209.36,209.28,0.2]
[1759154445226,13.59559401,209.34,209.28,0.2]
[1759154445433,13.59559401,209.34,209.28,4.97825206]
[1759154445639,13.59559401,209.34,209.28,0.2]
[1759154445940,0.72,209.33,209.28,0.2]
[1759154446115,13.59559401,209.34,209.28,0.2]
[1759154446321,13.59559401,209.31,209.28,0.2]
[1759154446731,8.99816749,209.32,209.22,42.54]
[1759154446732,13.59559401,209.29,209.22,42.54]
[1759154446930,5.49828746,209.28,209.22,42.54]
[1759154447132,13.59559401,209.27,209.22,42.54]
[1759154447440,0.72,209.26,209.22,42.54]
[1759154448139,0.72,209.25,209.22,42.54]
[1759154448720,13.59559401,209.27,209.22,42.54]
[1759154448915,0.72,209.26,209.22,42.54]
[1759154449243,26.0,209.25,209.22,42.54]
[1759154449823,13.59559401,209.28,209.22,47.31961602]
[1759154450021,0.72,209.36,209.23,0.66]
[1759154450221,0.72,209.36,209.25,26.0]
[1759154450437,0.72,209.35,209.23,0.66]
[1759154450625,13.59559401,209.34,209.23,0.66]
[1759154450940,13.59559401,209.32,209.24,4.77920091]
[1759154451334,13.59559401,209.32,209.25,0.67]
[1759154451946,18.37300712,209.32,209.25,0.67]
[1759154452334,13.59559401,209.3,209.22,42.54]
[1759154452539,0.66,209.29,209.22,42.54]
[1759154452738,14.25559401,209.28,209.22,42.54]
[1759154452928,4.77851579,209.27,209.22,42.54]
[1759154453133,5.43851579,209.27,209.22,42.54]
[1759154453332,0.66,209.26,209.22,42.54]
[1759154453536,14.25559401,209.25,209.22,42.54]
[1759154453734,13.59559401,209.25,209.22,42.54]
[1759154453948,13.59559401,209.25,209.19,0.2]
[1759154453949,26.0,209.28,209.19,12.15085807]
[1759154454147,0.66,209.3,209.19,5.65034107]
[1759154454343,0.66,209.29,209.19,5.65034107]
[1759154454849,13.59559401,209.26,209.19,5.65024458]
[1759154455421,13.59559401,209.26,209.19,4.98024458]
[1759154455627,13.59559401,209.24,209.19,0.2]
[1759154456035,18.37436561,209.26,209.19,4.98033865]
[1759154456248,18.37436561,209.26,209.19,0.2]
[1759154456546,13.59559401,209.24,209.19,0.2]
[1759154456747,26.0,209.27,209.19,4.98021072]
[1759154456949,13.59559401,209.28,209.21,4.77988623]
[1759154457153,18.37394475,209.28,209.21,4.77988623]
[1759154457727,13.59559401,209.28,209.21,4.77988623]
[1759154458425,0.66,209.27,209.19,0.2]
[1759154458634,13.59559401,209.26,209.19,0.2]
[1759154458941,0.66,209.25,209.19,4.98024841]
[1759154459141,13.59559401,209.27,209.19,4.98024841]
[1759154459451,13.59559401,209.27,209.19,0.2]
[1759154459452,0.66,209.26,209.19,0.2]
[1759154460841,4.77842338,209.28,209.19,5.65026539]
[1759154461350,8.27816749,209.34,209.2,0.67]
[1759154462059,8.27816749,209.31,209.2,0.67]
[1759154462357,8.27816749,209.31,209.19,0.2]
[1759154462745,39.59559401,209.27,209.19,0.2]
[1759154462943,16.72640382,209.25,209.19,0.2]
[1759154463128,13.59559401,209.24,209.19,0.2]
[1759154463453,40.25559401,209.24,209.19,0.2]
[1759154463827,13.59559401,209.22,209.19,0.2]
[1759154464232,0.66,209.21,209.19,0.2]
[1759154464434,13.59559401,209.23,209.19,0.2]
[1759154464642,0.66,209.22,209.19,0.2]
[1759154464844,26.0,209.24,209.19,0.87]
[1759154465146,30.77923046,209.24,209.19,0.2]
[1759154465340,26.66,209.24,209.19,4.98033784]
[1759154465550,30.77927296,209.24,209.19,0.2]
[1759154465739,14.25559401,209.23,209.19,0.2]
[1759154466259,26.0,209.16,209.08,0.67]
[1759154466647,14.25559401,209.19,209.08,0.67]
[1759154467165,13.59559401,209.17,209.08,0.67]
[1759154467463,13.59559401,209.17,209.07,0.2]
[1759154467464,26.0,209.25,209.07,0.2]
[1759154467667,26.0,209.18,209.09,0.67]
[1759154468670,5.4408003,209.17,209.1,4.78240076]
[1759154468962,30.98839507,209.17,209.09,0.67]
[1759154469375,30.98839507,209.17,209.07,0.2]
[1759154470242,30.98839507,209.17,209.07,4.98307176]
[1759154470445,26.0,209.14,209.07,0.2]
[1759154470766,4.78171472,209.13,209.07,0.2]
[1759154470972,5.44171472,209.13,209.07,0.2]
[1759154471338,17.39600152,209.13,209.07,0.2]
[1759154471842,26.0,209.14,209.07,0.2]
[1759154471843,26.66,209.14,209.07,4.983051]
[1759154473262,31.44156387,209.14,209.07,4.98307925]
[1759154473558,31.44156387,209.14,209.07,0.2]
[1759154473943,31.44156387,209.14,209.07,4.98301341]
[1759154473944,26.66,209.14,209.07,4.98301341]
[1759154474149,26.0,209.14,209.07,4.98301341]
[1759154474447,0.66,209.17,209.08,0.66]
[1759154474638,14.25559401,209.2,209.1,26.0]
[1759154474838,19.03591385,209.2,209.11,42.54]
[1759154475055,5.44055159,209.19,209.12,4.78194338]
[1759154475238,0.66,209.19,209.12,4.78194338]
[1759154475441,0.66,209.19,209.12,16.73680183]
[1759154475644,0.66,209.19,209.12,4.78194338]
[1759154475840,26.66,209.18,209.11,41.88]
[1759154476361,26.66,209.18,209.11,46.66215376]
[1759154476763,26.0,209.18,209.11,58.61758391]
[1759154477062,19.03548024,209.21,209.13,4.78171472]
[1759154477063,5.43988623,209.21,209.13,4.78171472]
[1759154477267,5.43988623,209.21,209.12,0.66]
[1759154477658,5.43988623,209.21,209.12,17.39669175]
[1759154478146,0.66,209.24,209.13,0.66]
[1759154478346,3.91312598,209.44,209.16,26.0]
[1759154478347,0.66,209.28,209.16,26.0]
[1759154478564,26.0,209.27,209.17,0.66]
[1759154478765,26.0,209.27,209.18,41.8]
[1759154479145,30.77859122,209.27,209.19,4.78034322]
[1759154479545,4.77859122,209.27,209.19,4.78034322]
[1759154479764,30.77859122,209.27,209.19,4.78034322]
[1759154479962,31.43859122,209.27,209.19,4.78034322]
[1759154480162,26.66,209.27,209.19,16.73120129]
[1759154480354,0.66,209.31,209.2,0.66]
[1759154480564,0.66,209.31,209.22,26.0]
[1759154480870,0.66,209.34,209.23,0.66]
[1759154481045,14.25559401,209.34,209.24,41.72]
[1759154481245,5.47714613,209.33,209.25,4.77897252]
[1759154481769,0.7,209.33,209.25,5.49897252]
[1759154481982,0.7,209.36,209.25,5.49897252]
[1759154482150,0.7,209.36,209.26,0.72]
[1759154482567,5.4764654,209.36,209.26,0.72]
[1759154483584,13.59559401,209.35,209.24,41.72]
[1759154483746,13.59559401,209.33,209.24,41.72]
[1759154483942,6.24670426,209.32,209.25,41.6]
[1759154484354,13.59559401,209.31,209.25,41.6]
[1759154484555,0.7,209.3,209.25,41.6]
[1759154484752,5.54670426,209.32,209.26,0.72]
[1759154484753,26.0,209.32,209.26,0.72]
[1759154484948,26.0,209.32,209.25,41.6]
[1759154485456,4.77760259,209.31,209.25,41.6]
[1759154486358,4.77714613,209.33,209.26,0.72]
[1759154486671,18.37274014,209.33,209.26,0.72]
[1759154486869,38.64257667,209.34,209.26,0.72]
[1759154486870,26.0,209.34,209.26,0.72]
[1759154487067,0.7,209.37,209.26,0.72]
[1759154487283,4.77608018,209.38,209.27,5.54670426]
[1759154487455,5.47624556,209.37,209.28,5.49828746]
[1759154487953,0.7,209.37,209.28,4.77828746]
[1759154488153,0.7,209.37,209.29,0.72]
[1759154488860,5.47638631,209.37,209.29,0.72]
[1759154489062,5.47638631,209.37,209.28,4.77828746]
[1759154489259,0.7,209.36,209.26,0.72]
[1759154489464,4.77668975,209.35,209.27,41.5]
[1759154489670,6.24670426,209.34,209.27,41.5]
[1759154489977,0.7,209.33,209.27,41.5]
[1759154490472,26.0,209.32,209.27,41.5]
[1759154490683,0.7,209.31,209.27,41.5]
[1759154490977,0.7,209.3,209.27,41.5]
[1759154491354,4.77828746,209.28,209.2,4.78011472]
[1759154491549,4.77828746,209.28,209.25,41.46]
[1759154491763,0.7,209.27,209.25,41.46]
[1759154491968,0.7,209.26,209.25,41.46]
[1759154493163,26.7,209.26,209.25,41.46]
[1759154493363,4.77828746,209.28,209.25,41.46]
[1759154493563,26.0,209.3,209.25,41.46]
[1759154493767,4.77760259,209.31,209.25,41.46]
[1759154494755,13.59559401,209.31,209.25,41.46]
[1759154495481,26.0,209.33,209.26,0.72]
[1759154496381,30.77722076,209.33,209.26,0.72]
[1759154497090,26.0,209.36,209.26,0.72]
[1759154497256,14.29559401,209.36,209.26,0.72]
[1759154497456,13.59559401,209.34,209.26,5.49872125]
[1759154497660,13.59559401,209.34,209.27,41.28]
[1759154497661,0.7,209.33,209.27,41.28]
[1759154497963,13.59559401,209.34,209.27,41.28]
[1759154498288,0.7,209.41,209.28,6.26670426]
[1759154498461,0.7,209.41,209.29,0.72]
[1759154498462,13.59559401,209.4,209.29,0.72]
[1759154499775,4.77577725,209.39,209.3,16.72240802]
[1759154500090,4.77577725,209.39,209.31,0.72]
[1759154500289,0.7,209.41,209.31,0.72]
[1759154500467,13.59559401,209.4,209.31,0.72]
[1759154501064,13.59559401,209.38,209.32,41.2]
[1759154501278,0.7,209.37,209.32,41.2]
[1759154501478,0.7,209.36,209.32,41.2]
[1759154501992,4.77659736,209.36,209.32,41.2]
[1759154502201,0.7,209.36,209.32,41.2]
[1759154502988,13.59559401,209.38,209.32,41.2]
[1759154503163,13.59559401,209.38,209.32,41.92]
[1759154503358,13.59559401,209.38,209.32,41.2]
[1759154503990,37.93909782,209.4,209.32,41.2]
[1759154503991,26.0,209.4,209.32,45.97725404]
[1759154504185,30.77565657,209.4,209.33,0.72]
[1759154504368,14.29559401,209.42,209.33,0.72]
[1759154504566,23.96312806,209.53,209.33,0.72]
[1759154504784,13.59559401,209.46,209.33,6.26670426]
[1759154504994,26.0,209.43,209.34,0.72]
[1759154505296,0.7,209.46,209.34,0.72]
[1759154505677,13.59559401,209.48,209.34,0.72]
[1759154505678,23.65147041,209.43,209.34,0.72]
[1759154505874,18.3703945,209.44,209.35,4.77668975]
[1759154506080,18.3703945,209.44,209.36,0.72]
[1759154506373,0.7,209.43,209.37,41.1]
[1759154506579,13.59559401,209.42,209.38,41.1]
[1759154506799,0.7,209.41,209.38,41.1]
[1759154506977,13.59559401,209.43,209.38,41.1]